Cogmind - Beta 13 X1 @@@ ROGUE MODE // 2023.06.24 @ 12:19:03 Player: Plexion Result: Destroyed by as-27323 with Assembled Focal Cannon Performance ------------- Evolutions (3) 1500 Regions Visited (8) 1600 Robots Destroyed (142) 710 Value Destroyed (4989) 4989 Prototype IDs (28) 560 Alien Tech Used (0) 0 Bonus (2572) 2572 TOTAL SCORE: 11931 Bonus ------- High Alert Combat Kills 503 Met Imprinter 300 Destroyed Z-Imprinter 1000 Triggered Deep Caves Wall 500 Exposed GOLEM Chamber 500 Friendly Fire -231 Cogmind --------- Core Integrity 0/700 Matter 245/300 Energy 132/180 System Corruption 0% Temperature Cool (6) Movement Treading (560) Ox5 Location -7/Deep Caves Parts ------- > --- POWER (1) -------- Meta Core > --- PROPULSION (4) --- Light Treads Carbon-fiber Leg Zionite Composite Leg I > --- UTILITY (6+1) ---- Experimental Heat Sink Huge Storage Unit Machine Analyzer (+) Experimental Core Analyzer Zionite Weapon Casing Hardened Medium Armor Plating Hardened Medium Armor Plating > --- WEAPON (2) ------- Riot Gun Heavy Riot Gun > --- INVENTORY (25) --- Zionite Biocell (600) Zionite Biocell (600) Zionite Biocell (600) High-capacity Matter Pod (200) Zionite Weapon Casing Hardened Light Armor Plating Hardened Medium Armor Plating Reactive Plating Advanced Force Field Makeshift Hacking Suite Component Analysis Suite Long-range Tractor Beam GOLEM Unit GOLEM Unit Enhanced Autogun CR-A16's Pointy Stick Peak State ------------ > --- POWER ------------ Meta Core > --- PROPULSION ------- Light Treads Carbon-fiber Leg Zionite Composite Leg I Zionite Glidesys I > --- UTILITY ---------- Experimental Heat Sink Huge Storage Unit Machine Analyzer Experimental Core Analyzer Zionite Weapon Casing Zionite Heavy Carapace > --- WEAPON ----------- RU-N14's Throwing Claymores RU-N14's Throwing Claymores > --- INVENTORY -------- Zionite Glidesys I Zionite Biocell Zionite Biocell Zionite Biocell High-capacity Matter Pod Zionite Weapon Casing Zionite Heavy Carapace Hardened Light Armor Plating Hardened Medium Armor Plating Hardened Medium Armor Plating Hardened Medium Armor Plating Reactive Plating Advanced Force Field Makeshift Hacking Suite Component Analysis Suite Long-range Tractor Beam Riot Gun Heavy Riot Gun Enhanced Autogun CR-A16's Pointy Stick [Rating: 91] Favorites ----------- Power Meta Core Engine Ion Engine Power Core Meta Core Propulsion Armored Treads Treads Armored Treads Leg Zionite Composite Leg I Hover Unit Zionite Glidesys I Utility Hardened Medium Armor Plating Device Improved Heat Sink Storage Huge Storage Unit Processor Machine Analyzer Protection Hardened Medium Armor Plating Weapon Enhanced Autogun Energy Gun Pulse Rifle Energy Cannon Heavy Ion Cannon Ballistic Gun Enhanced Autogun Ballistic Cannon Battle Cannon Launcher Subdweller Shrapnel Launcher Special Weapon RU-N14's Throwing Claymores Impact Weapon Great Maul Piercing Weapon CR-A16's Pointy Stick Build | -11 -10 -10 -8 -7 -7 -7 -7 -7 ------- Run | Jun Mat Sub Mat Fac Low Low Zio Dee Slots Evolved 6 | . . . 4 2 . . . . Power . | . . . . . . . . . Propulsion 2 | . . . 2 . . . . . Utility 4 | . . . 2 2 . . . . Weapon . | . . . . . . . . . Parts Attached 177 | 6 6 9 50 32 16 11 9 38 Power 6 | 1 . . 4 1 . . . . Engine 3 | 1 . . 2 . . . . . Core 3 | . . . 2 1 . . . . Reactor . | . . . . . . . . . Propulsion 24 | 2 1 1 8 2 1 1 . 8 Treads 18 | 2 1 1 8 2 1 1 . 2 Leg 3 | . . . . . . . . 3 Wheel . | . . . . . . . . . Hover 3 | . . . . . . . . 3 Flight . | . . . . . . . . . Utility 72 | 1 3 2 18 14 11 4 5 14 Device 37 | . . . 11 9 8 4 3 2 Storage 5 | 1 1 . 1 . . . . 2 Processor 5 | . . 1 . 3 . . 1 . Hackware . | . . . . . . . . . Protection 25 | . 2 1 6 2 3 . 1 10 Artifact . | . . . . . . . . . Weapon 75 | 2 2 6 20 15 4 6 4 16 Energy Gun 14 | 1 . . 1 4 . . . 8 Energy Cannon 2 | . . . . 2 . . . . Ballistic Gun 19 | 1 2 2 4 4 2 3 1 . Ballistic Cannon 8 | . . 2 6 . . . . . Launcher 16 | . . 2 6 3 1 3 1 . Special Weapon 8 | . . . . . . . 1 7 Impact Weapon 7 | . . . 3 2 1 . 1 . Slashing Weapon . | . . . . . . . . . Piercing Weapon 1 | . . . . . . . . 1 Special Melee Weapon . | . . . . . . . . . Unidentified Prototypes 14 | . . . 2 3 1 . 1 7 Parts Lost 28 | . . 2 5 4 1 2 . 14 Power 2 | . . . 2 . . . . . Propulsion 13 | . . 2 1 . 1 2 . 7 Utility 8 | . . . . 1 . . . 7 Weapon 5 | . . . 2 3 . . . . Highest Loss Streak 5 | . . 2 2 1 1 1 . 5 To Critical Strikes 1 | . . . . . . 1 . . Average Slot Usage (%) 96 | . 99 99 97 94 100 99 97 93 Engine 2 | . 14 14 4 . . . . . Core 5 | . . . 4 6 6 6 7 7 Treads 27 | . 27 27 35 32 33 30 28 15 Leg 1 | . . . . . . . . 5 Hover 1 | . . . . . . . . 4 Device 5 | . . . 7 6 6 6 5 5 Storage 7 | . 14 14 9 6 6 6 7 7 Processor 14 | . . . . 18 20 20 21 19 Protection 13 | . 13 14 18 8 13 13 14 13 Energy Gun 3 | . 1 . . 3 6 6 . 8 Ballistic Gun 6 | . 26 16 3 7 5 6 5 . Ballistic Cannon 2 | . . 3 13 . . . . . Launcher 1 | . . 8 . . . . . . Impact Weapon 1 | . . . . . . . 5 . Naked Turns . | . . . . . . . . . Heaviest Build 125 | 13 36 36 112 116 110 114 125 122 Greatest Support 108 | 40 40 40 89 108 108 108 80 80 Greatest Overweight (x) 6 | . . 1 1 1 1 1 1 6 Average Overweight (x) . | . . . . . . . 1 1 Largest Inventory Capacity 25 | 8 15 15 25 25 25 25 25 25 Average Capacity 22 | 6 13 15 18 25 25 25 25 25 Most Carried 25 | 2 15 15 21 25 25 25 25 25 Average Carried 20 | 1 10 14 15 22 24 24 24 21 Final Capacity 25 | 8 15 15 25 25 25 25 25 25 Final Carried 25 | 2 13 14 20 25 25 24 25 18 Class Distribution -------------------- 67% | Mutant 16% | Skirmisher 8% | Assassin 7% | Scavenger-Mutant Dominant Class ---------------- Mutant | -10/Materials Mutant | -10/Subcaves Mutant | -8/Materials Mutant | -7/Factory Mutant | -7/Lower Caves Skirmisher | -7/Lower Caves Mutant | -7/Zion Mutant | -7/Deep Caves Resources | -11 -10 -10 -8 -7 -7 -7 -7 -7 ----------- Run | Jun Mat Sub Mat Fac Low Low Zio Dee Matter Collected 5231 | 213 317 391 1967 734 454 415 236 504 Remotely 766 | . . . 611 52 . 103 . . Salvage Created 5686 | . 335 275 1591 986 611 57 . 1831 Parts 228 | . 27 19 95 41 12 6 . 28 Haulers Intercepted 8 | . 2 . 4 1 1 . . . Recyclers Shooed 3 | . 1 . 1 1 . . . . Parts Field Recycled . | . . . . . . . . . Retrieved Matter . | . . . . . . . . . Parts Self-Destructed 18 | . . 8 . . 5 3 2 . Prevented . | . . . . . . . . . Kills | -11 -10 -10 -8 -7 -7 -7 -7 -7 ------- Run | Jun Mat Sub Mat Fac Low Low Zio Dee Combat Hostiles Destroyed 162 | . 6 15 39 19 9 7 . 67 Melee 4 | . . . 4 . . . . . Guns 24 | . 6 3 4 6 2 . . 3 Cannons 23 | . . . 16 2 . . . 5 AOE 98 | . . 12 15 11 4 7 . 49 Classes Destroyed 19 | . 6 3 2 4 . . . 4 Worker 3 | . . . 2 1 . . . . Builder 8 | . 3 . 4 1 . . . . Hauler 8 | . 2 . 4 1 1 . . . Recycler 6 | . . . 4 2 . . . . Mechanic 1 | . . . . 1 . . . . Operator 1 | . 1 . . . . . . . Watcher 7 | . 2 . 5 . . . . . Swarmer 25 | . 3 5 10 . . 7 . . Grunt 43 | . 3 . 21 14 5 . . . Brawler 1 | . . . . 1 . . . . Sentry 11 | . . 1 8 2 . . . . Hunter 1 | . . . . 1 . . . . Programmer 1 | . . . . 1 . . . . Artisan 1 | . . 1 . . . . . . Subdweller 9 | . . 9 . . . . . . Z-Light 8 | . . . . . . . . 8 Assembler 2 | . . . . . . . . 2 Assembled 42 | . . . . . . . . 42 Golem 16 | . . . . . . . . 16 Thug 4 | . . . . . 4 . . . Best Kill Streak 36 | . 3 4 8 7 4 4 . 36 Combat Bots Only 35 | . 3 4 5 5 4 4 . 35 Max Kills in Single Turn 29 | . 1 2 4 5 2 3 . 29 Gunslinging . | . . . . . . . . . Exploded 29 | . . 2 3 4 2 3 . 29 Melee 1 | . . . 1 . . . . . Uniques/NPCs Destroyed 1 | . . . . . . . . 1 Z-Imprinter (-7/Deep Caves) Combat | -11 -10 -10 -8 -7 -7 -7 -7 -7 -------- Run | Jun Mat Sub Mat Fac Low Low Zio Dee Damage Taken 7253 | . 198 607 1581 1183 742 234 . 2708 Core 971 | . 40 106 119 89 75 15 . 527 Absorbed by Shields . | . . . . . . . . . Redirected to Shielding 151 | . . . . . . . . 151 Ignored by Resistances 55 | . . . 55 . . . . . Regen/Repaired (Parts) 38 | . 38 . . . . . . . Core Remaining (%) 73 | 100 . 41 78 . . . . . Volleys Fired 362 | . 30 47 108 58 29 6 . 84 Largest 3 | . 2 2 2 3 2 1 . 2 Hottest 158 | . 46 67 78 158 88 40 . 110 Shots Fired 652 | . 60 59 206 113 56 7 . 151 Gun 360 | . 60 20 21 98 52 1 . 108 Cannon 202 | . . 19 174 9 . . . . Launcher 50 | . . 20 11 6 4 6 . 3 Special 40 | . . . . . . . . 40 Kinetic 402 | . 60 39 206 59 28 7 . 3 Thermal 75 | . . . . 47 28 . . . Explosive 60 | . . 20 . . . . . 40 Electromagnetic 115 | . . . . 7 . . . 108 Robot Hit Streak 27 | . 14 9 15 23 27 1 . 20 Robot Miss Streak 8 | . 7 3 4 2 2 2 . 8 Penetration Max . | . . . . . . . . . Secondary Targets 1 | . 1 . . . . . . . Max Gunslinging Chain 1 | . 1 . . . . . . . Shots Hit Robots 454 | . 43 33 131 91 43 1 . 112 Core Hits 433 | . 24 29 81 46 24 11 . 218 Critical Kills 1 | . . . 1 . . . . . Critical Parts Destroyed 5 | . 1 . 1 1 2 . . . Critical Strikes 14 | . 1 . 7 1 3 . . 2 Burn 1 | . . . . . 1 . . . Destroy 2 | . 1 . . 1 . . . . Blast 5 | . . . 5 . . . . . Smash 4 | . . . 2 . 2 . . . Sever 2 | . . . . . . . . 2 Melee Attacks 25 | . . . 10 4 8 . 1 2 Impact 23 | . . . 10 4 8 . 1 . Slashing . | . . . . . . . . . Piercing 2 | . . . . . . . . 2 Sneak Attacks . | . . . . . . . . . Combat Hostiles . | . . . . . . . . . Follow-up Attacks . | . . . . . . . . . Damage Inflicted 22922 | . 719 1422 4459 2748 1549 612 . 11413 Guns 5062 | . 719 296 287 1460 652 . . 1648 Cannons 2606 | . . 159 2258 189 . . . . Explosions 13508 | . . 967 1463 1086 626 612 . 8754 Melee 647 | . . . 376 . 271 . . . Ramming 88 | . . . 75 13 . . . . Kinetic 8219 | . 719 455 3902 1470 886 612 . 175 Thermal 1751 | . . . . 941 392 . . 418 Explosive 9418 | . . 967 106 184 . . . 8161 Electromagnetic 1788 | . . . . 140 . . . 1648 Impact 647 | . . . 376 . 271 . . . Slashing 1011 | . . . . . . . . 1011 Piercing . | . . . . . . . . . Highest Corruption 8 | . . . 6 8 8 8 8 . Average Corruption 6 | . . . 4 4 8 8 8 . Corruption Purged . | . . . . . . . . . Corruption Blocked . | . . . . . . . . . Effects 207 | . . . 44 44 57 47 15 . Message Errors 54 | . . . 13 15 14 9 3 . Matter Fused 58 | . . . 11 10 17 14 6 . Heat Flow Errors 18 | . . . 3 3 2 9 1 . Energy Discharges 28 | . . . 5 5 10 5 3 . Parts Rejected 3 | . . . 2 1 . . . . Parts Fused 2 | . . . 1 . 1 . . . Data Loss (minor) 20 | . . . 4 6 3 6 1 . Data Loss (major) 11 | . . . 1 3 6 1 . . Misfires 8 | . . . 3 1 3 1 . . Alerts 3 | . . . . . . 2 1 . Weapon Failures 2 | . . . 1 . 1 . . . Overload Shots . | . . . . . . . . . Overflow Damage 503 | . . 2 148 74 115 7 . 157 Projectiles 84 | . . . 45 . . . . 39 Explosions 280 | . . 2 71 74 8 7 . 118 Melee 139 | . . . 32 . 107 . . . Knockbacks 35 | . . 3 32 . . . . . Impact 1 | . . . 1 . . . . . Kinetic 32 | . . 3 29 . . . . . Secondary 2 | . . . 2 . . . . . Self-Inflicted Damage 469 | . . 61 102 56 73 . . 177 Shots 14 | . . 4 3 1 3 . . 3 Rammed 10 | . . . 9 1 . . . . Targets Rammed 14 | . . . 11 3 . . . . Kicked . | . . . . . . . . . Crushed 4 | . . . 2 2 . . . . Highest Temperature 469 | . 24 18 469 279 289 268 133 19 Average Temperature 83 | . 10 6 109 61 64 95 69 7 Received Heat Transfer 2145 | . 72 135 855 294 378 . . 411 Effects 7 | . . . 5 2 . . . . Energy Bleed 1 | . . . 1 . . . . . Interference 4 | . . . 2 2 . . . . Matter Decay 2 | . . . 2 . . . . . Siege Activations . | . . . . . . . . . Robots Corrupted 10 | . . . . . . . . 10 Combat Hostiles 10 | . . . . . . . . 10 Parts Fried 2 | . . . . . 2 . . . Impact Corruptions 6 | . . . 2 . 4 . . . Robots Melted . | . . . . . . . . . Combat Hostiles . | . . . . . . . . . Parts Melted 2 | . . 1 . . 1 . . . Heat Transferred 2842 | . . . . 1667 925 . . 250 Parts Sabotaged . | . . . . . . . . . Parts Stolen . | . . . . . . . . . Parts Stripped . | . . . . . . . . . Power Chain Reactions 6 | . . . . 1 . . . 5 Missiles Intercepted . | . . . . . . . . . Alert | -11 -10 -10 -8 -7 -7 -7 -7 -7 ------- Run | Jun Mat Sub Mat Fac Low Low Zio Dee Peak Influence 912 | . 176 . 912 649 . . . . Initial 414 | . . . 40 414 . . . . Average 340 | . 44 . 378 468 . . . . Maximum Alert Level 3 | . . . 3 2 . . . . Low Security (%) 33 | 100 100 . 28 . . . . . Level 1 17 | . . . 34 7 . . . . Level 2 42 | . . . 23 92 . . . . Level 3 6 | . . . 14 . . . . . Level 4 . | . . . . . . . . . Level 5 . | . . . . . . . . . High Security . | . . . . . . . . . Max Security . | . . . . . . . . . Squads Dispatched 17 | . 2 . 5 10 . . . . Investigation 1 | . . . 1 . . . . . Extermination 2 | . . . . 2 . . . . Reinforcement 11 | . 2 . 3 6 . . . . Assault 3 | . . . 1 2 . . . . Garrison . | . . . . . . . . . Intercept . | . . . . . . . . . Searches Triggered . | . . . . . . . . . Construction Impeded 2 | . . . 1 1 . . . . Haulers Reinforced 2 | . . . . 2 . . . . Active Scanning Responses . | . . . . . . . . . Cargo Convoy Interrupts . | . . . . . . . . . Stealth | -11 -10 -10 -8 -7 -7 -7 -7 -7 --------- Run | Jun Mat Sub Mat Fac Low Low Zio Dee Distress Signals 8 | . 3 . 5 . . . . . Communications Jammed . | . . . . . . . . . Distress Signals . | . . . . . . . . . Times Spotted 192 | . 14 18 60 25 10 7 . 58 Peak Tracking Total 37 | . 4 6 6 4 5 4 . 37 Tactical Retreats 16 | . 2 1 . 2 1 . . 10 Traps | -11 -10 -10 -8 -7 -7 -7 -7 -7 ------- Run | Jun Mat Sub Mat Fac Low Low Zio Dee Traps Triggered 5 | . . . 4 1 . . . . Indirectly . | . . . . . . . . . Trap Hack Attempts . | . . . . . . . . . Triggered . | . . . . . . . . . Disarmed . | . . . . . . . . . Reprogrammed . | . . . . . . . . . Reused . | . . . . . . . . . Traps Extracted . | . . . . . . . . . Installed . | . . . . . . . . . Triggered . | . . . . . . . . . Machines | -11 -10 -10 -8 -7 -7 -7 -7 -7 ---------- Run | Jun Mat Sub Mat Fac Low Low Zio Dee Machines Disabled 14 | . . 2 8 2 . . . 2 Max in Single Turn 2 | . . 1 2 1 . . . 1 Garrison Access 1 | . . . . 1 . . . . Machines Repaired . | . . . . . . . . . Machines Sabotaged . | . . . . . . . . . Overloaded Fab Kills . | . . . . . . . . . Hacking | -11 -10 -10 -8 -7 -7 -7 -7 -7 --------- Run | Jun Mat Sub Mat Fac Low Low Zio Dee Machines Accessed 8 | . 2 1 1 3 . 1 . . Terminals 4 | . 1 . 1 2 . . . . Fabricators 1 | . . . . 1 . . . . Repair Stations 1 | . 1 . . . . . . . Recycling Units . | . . . . . . . . . Scanalyzers . | . . . . . . . . . Garrison Access . | . . . . . . . . . Total Hacks 17 | . 4 2 5 4 . 2 . . Successful 11 | . 3 2 2 2 . 2 . . Failed 6 | . 1 . 3 2 . . . . Catastrophic 3 | . . . 1 2 . . . . Database Lockouts . | . . . . . . . . . Manual 8 | . . . 4 . . . 4 . Terminals 9 | . 2 . 5 2 . . . . Fabricators 2 | . . . . 2 . . . . Repair Stations 2 | . 2 . . . . . . . Recycling Units . | . . . . . . . . . Scanalyzers . | . . . . . . . . . Garrison Access . | . . . . . . . . . Terminal Hacks 8 | . 1 2 2 1 . 2 . . Record 3 | . . 1 . . . 2 . . Robot Analysis 1 | . . . 1 . . . . . Branch Access Points 1 | . . . 1 . . . . . Terminal Index 1 | . . . . 1 . . . . Hauler Manifests 1 | . 1 . . . . . . . Derelict Proto ID Bank 1 | . . 1 . . . . . . Fabricator Hacks 1 | . . . . 1 . . . . Network Status 1 | . . . . 1 . . . . Repair Station Hacks 2 | . 2 . . . . . . . Scan Component 1 | . 1 . . . . . . . Repair 1 | . 1 . . . . . . . Recycling Unit Hacks . | . . . . . . . . . Scanalyzer . | . . . . . . . . . Garrison Access Hacks . | . . . . . . . . . Unauthorized Hacks . | . . . . . . . . . Terminals . | . . . . . . . . . Fabricators . | . . . . . . . . . Repair Stations . | . . . . . . . . . Recycling Units . | . . . . . . . . . Scanalyzers . | . . . . . . . . . Garrison Access . | . . . . . . . . . Data Cores Recovered . | . . . . . . . . . Used . | . . . . . . . . . Hacking Detections 4 | . 1 . 1 2 . . . . Full Trace Events 1 | . . . 1 . . . . . Feedback Events 1 | . . . 1 . . . . . Corruption 1 | . . . 1 . . . . . Feedback Blocked . | . . . . . . . . . Robot Schematics Acquired 4 | . . . . . . . 4 . Robots Built . | . . . . . . . . . Authchips . | . . . . . . . . . Time . | . . . . . . . . . Total Robot Build Rating . | . . . . . . . . . Part Schematics Acquired 15 | . . . . . . . 15 . Parts Built . | . . . . . . . . . Authchips . | . . . . . . . . . Time . | . . . . . . . . . Total Part Build Rating . | . . . . . . . . . Parts Repaired 1 | . 1 . . . . . . . Time 13 | . 13 . . . . . . . Parts Recycled . | . . . . . . . . . Recycled Matter . | . . . . . . . . . Retrieved Matter . | . . . . . . . . . Retrieved Components . | . . . . . . . . . Parts Scanalyzed . | . . . . . . . . . Part Schematics Acquired . | . . . . . . . . . Parts Damaged . | . . . . . . . . . Bothacking | -11 -10 -10 -8 -7 -7 -7 -7 -7 ------------ Run | Jun Mat Sub Mat Fac Low Low Zio Dee Used RIF Installer . | . . . . . . . . . Robots Hacked . | . . . . . . . . . Non-combat . | . . . . . . . . . Combat . | . . . . . . . . . Robot Hacks Applied . | . . . . . . . . . Relay Couplers Released 2 | . . . . 2 . . . . Machine Destruction 2 | . . . . 2 . . . . Fabnet Peak Effective % . | . . . . . . . . . Robots Rewired . | . . . . . . . . . Allies Hacked . | . . . . . . . . . Hacks Repelled . | . . . . . . . . . Allies | -11 -10 -10 -8 -7 -7 -7 -7 -7 -------- Run | Jun Mat Sub Mat Fac Low Low Zio Dee Total Allies 8 | . . . . 8 . . . . Largest Group 4 | . . . . 4 . . . . Highest-Rated Group 101 | . . . . 101 . . . . Highest-Rated Ally 31 | . . . . 31 . . . . Total Orders . | . . . . . . . . . Ally Attacks . | . . . . . . . . . Total Damage . | . . . . . . . . . Kills . | . . . . . . . . . Allies Corrupted . | . . . . . . . . . Allies Melted . | . . . . . . . . . Intel | -11 -10 -10 -8 -7 -7 -7 -7 -7 ------- Run | Jun Mat Sub Mat Fac Low Low Zio Dee Robot Analysis Total 1 | . . . 1 . . . . . Derelict Logs Recovered 9 | . . 2 . . 2 3 2 . Drone Launches . | . . . . . . . . . Drone Recoveries . | . . . . . . . . . Exploration | -11 -10 -10 -8 -7 -7 -7 -7 -7 ------------- Run | Jun Mat Sub Mat Fac Low Low Zio Dee Turns Passed 16508 | 68 970 1237 2294 1742 1867 1550 3027 3753 Spaces Moved 6493 | 40 432 668 941 687 689 619 1150 1267 Core 5 | 5 . . . . . . . . Treads 5840 | 35 432 668 941 687 689 619 1150 619 Legs 479 | . . . . . . . . 479 Wheels . | . . . . . . . . . Hover 169 | . . . . . . . . 169 Flight . | . . . . . . . . . Fastest Speed 50 | 50 160 160 160 168 166 166 245 212 Average Speed 223 | 146 160 163 186 216 247 245 245 269 Slowest Speed 510 | 160 160 240 247 248 248 246 245 510 Overloaded Moves . | . . . . . . . . . Propulsion Burnouts . | . . . . . . . . . Robots Hopped . | . . . . . . . . . Cave-ins Triggered . | . . . . . . . . . Exploration Rate (%) 60 | 4 68 49 67 14 84 90 86 78 Regions Visited 8 Branch Regions 5 Pre-discovered Areas 2 | . . 1 . . . . 1 . Known Exits Taken 1 | . . 1 . . . . . . Unknown Exits Taken 7 | 1 1 . 1 1 1 1 1 . Scrap Searched 15 | . . 5 . . 2 3 5 . Spaces Dug 136 | . . 15 86 4 16 15 . . Terrain Destroyed 763 | . . 88 167 102 61 85 . 260 Melee 5 | . . . 1 4 . . . . Projectile 22 | . . . 17 . . . . 5 AOE 736 | . . 88 149 98 61 85 . 255 Terrain Rammed . | . . . . . . . . . Walls Destroyed . | . . . . . . . . . Machines Disabled . | . . . . . . . . . Actions | -11 -10 -10 -8 -7 -7 -7 -7 -7 --------- Run | Jun Mat Sub Mat Fac Low Low Zio Dee Total 7784 | 47 652 756 1252 826 790 643 1365 1453 Wait 512 | . 160 12 89 25 38 . 167 21 Move 6485 | 39 431 667 940 686 688 618 1149 1267 Hop . | . . . . . . . . . Pick Up 101 | 2 16 10 17 13 3 3 19 18 Fast Attach 46 | 6 3 1 12 5 5 2 1 11 Attach 33 | . . 2 7 8 1 1 1 13 Detach 14 | . 1 2 5 2 . . 1 3 Swap 98 | . 3 6 31 19 10 8 7 14 Drop 94 | . 8 9 22 3 8 5 19 20 Fire 362 | . 30 47 108 58 29 6 . 84 Melee 25 | . . . 10 4 8 . 1 2 Ram . | . . . . . . . . . Kick . | . . . . . . . . . Crush 14 | . . . 11 3 . . . . Escape Stasis . | . . . . . . . . . Rewire . | . . . . . . . . . Trap . | . . . . . . . . . Miscellaneous . | . . . . . . . . . Route ------- -11/Junkyard -10/Materials (discovered 3 exits: [*Mat] / [*Min] / *Sub) -10/Subcaves -8/Materials -7/Factory (discovered 2 exits: [*Fac] / [*Low]) -7/Lower Caves -7/Lower Caves (discovered 2 exits: [*Fac] / *Zio) -7/Zion (discovered 2 exits: [*Dee] / [*Pro]) -7/Deep Caves (discovered 1 exit: [*Pro]) History --------- Turn | Location | Event 3 | -11/Junkyard | Discovered new exit (range 16) 69 | -11/Junkyard | Entered Materials 200 | -10/Materials | Discovered new exit (range 11) 312 | -10/Materials | Build established: Mutant 478 | -10/Materials | Repaired Lgt. Treads 702 | -10/Materials | Discovered new exit (range 15) 1019 | -10/Materials | Discovered new exit (range 6) 1039 | -10/Materials | Entered Subcaves 1119 | -10/Subcaves | Shifting Twisted Machinery released Barrage Gun 1120 | -10/Subcaves | Shifting Twisted Machinery released Battle Cannon 1175 | -10/Subcaves | Disturbed a concealed Subdweller 1354 | -10/Subcaves | Shifting Twisted Machinery released Hvy. Battle Rifle 1452 | -10/Subcaves | Visited 4L-MR0's lab 1456 | -10/Subcaves | Learned location of Zion (-7) 1491 | -10/Subcaves | Learned Materials emergency access door positions 1494 | -10/Subcaves | Found Meta Core 1543 | -10/Subcaves | A swath of the cavern ceiling suddenly collapsed 1718 | -10/Subcaves | Discovered new exit (range 4) 1725 | -10/Subcaves | Identified exit to Materials 1767 | -10/Subcaves | Ambushed by Subdweller buried in earth 1944 | -10/Subcaves | Shifting Twisted Machinery released Sub. Shrapnel Launcher 2169 | -10/Subcaves | Core integrity fell below 50% 2276 | -10/Subcaves | Entered Materials 2276 | -8/Materials | Evolved 4 slots: Propulsion x2, Utility x2 3942 | -8/Materials | Discovered new exit (range 16) 4276 | -8/Materials | First assault squad dispatched 4570 | -8/Materials | Entered Factory 4570 | -7/Factory | Evolved 2 slots: Utility x2 4857 | -7/Factory | Attached Meta Core, gained temporary slots: Propulsion, Utility, Weapon 4889 | -7/Factory | Discovered new exit (range 10) 5155 | -7/Factory | Build established: Skirmisher 5336 | -7/Factory | Discovered new exit (range 15) 5900 | -7/Factory | Build established: Mutant 6170 | -7/Factory | First assault squad dispatched 6312 | -7/Factory | Entered Lower Caves 6760 | -7/Lower Caves | Learned 4 Factory zone layouts 6893 | -7/Lower Caves | Learned Factory terminal intel 7139 | -7/Lower Caves | Build established: Skirmisher 7610 | -7/Lower Caves | Ambushed by wild Derelicts 7735 | -7/Lower Caves | Discovered new exit (range 13) 7933 | -7/Lower Caves | Found Imp. Powered Armor 8157 | -7/Lower Caves | Build established: Mutant 8179 | -7/Lower Caves | Entered another Lower Caves area 8186 | -7/Lower Caves | Discovered new exit (range 9) 8485 | -7/Lower Caves | Build established: Skirmisher 9005 | -7/Lower Caves | Discovered new exit (range 8) 9282 | -7/Lower Caves | Learned Factory security intel 9729 | -7/Lower Caves | Entered Zion 9762 | -7/Zion | Acquired unknown access codes intercepted by a Zionite 9816 | -7/Zion | Discovered new exit (range 15) 9984 | -7/Zion | Build established: Mutant 10218 | -7/Zion | System corruption cleaned by Quarantine Array 10376 | -7/Zion | Found Prototype Special Weapon 10376 | -7/Zion | Identified RU-N14's Throwing Claymores 10382 | -7/Zion | Found RU-N14's Throwing Claymores 10385 | -7/Zion | Found RU-N14's Throwing Claymores 10389 | -7/Zion | Found RU-N14's Throwing Claymores 10585 | -7/Zion | Given the Hacking Drone Bay 10639 | -7/Zion | Build established: Assassin 10753 | -7/Zion | Discovered new exit (range 16) 10914 | -7/Zion | Learned 8 Factory zone layouts 11110 | -7/Zion | Found CR-A16's Pointy Stick 11251 | -7/Zion | Learned Factory terminal intel 11751 | -7/Zion | Found Prototype Processor 11831 | -7/Zion | Identified Exp. Armor Integrity Analyzer 11834 | -7/Zion | Found Prototype Processor 11840 | -7/Zion | Found Prototype Processor 11901 | -7/Zion | Identified Exp. Melee Analysis Suite 11927 | -7/Zion | Identified Exp. Core Analyzer 12036 | -7/Zion | Build established: Mutant 12711 | -7/Zion | Opened final containment barrier to the Deep Caves 12751 | -7/Zion | Saw the warning signs outside the Deep Caves entrance 12756 | -7/Zion | Entered Deep Caves 13187 | -7/Deep Caves | Attacked by Z-Imprinter 13194 | -7/Deep Caves | Destroyed Z-Imprinter 13372 | -7/Deep Caves | Z-Facility disabled 13452 | -7/Deep Caves | Found Prototype Protection 13452 | -7/Deep Caves | Identified Zio. Weapon Casing 13517 | -7/Deep Caves | Found Zio. Weapon Casing 13584 | -7/Deep Caves | Found Zio. Weapon Casing 13803 | -7/Deep Caves | Build established: Scavenger-Mutant 14168 | -7/Deep Caves | Discovered new exit (range 6) 14294 | -7/Deep Caves | Spotted as-41974 14334 | -7/Deep Caves | Destroyed as-41974 14362 | -7/Deep Caves | Lost 4 parts (3n1u) 14600 | -7/Deep Caves | Build established: Mutant 15118 | -7/Deep Caves | Build established: Scavenger-Mutant 15161 | -7/Deep Caves | Spotted as-62449 15165 | -7/Deep Caves | Core integrity fell below 50% 15198 | -7/Deep Caves | Core integrity fell below 20% 15205 | -7/Deep Caves | Destroyed as-62449 15231 | -7/Deep Caves | Lost 5 parts (1n4u) 15490 | -7/Deep Caves | Build established: Mutant 15558 | -7/Deep Caves | Found Prototype Protection 15558 | -7/Deep Caves | Identified Zio. Heavy Carapace 15645 | -7/Deep Caves | Found Zio. Heavy Carapace 15983 | -7/Deep Caves | Exposed GOLEM chamber 15984 | -7/Deep Caves | Triggered Deep Caves wall 15985 | -7/Deep Caves | Spotted AS-99558 15992 | -7/Deep Caves | Destroyed AS-99558 16013 | -7/Deep Caves | Destroyed 35 combat bots 16025 | -7/Deep Caves | Spotted AS-01035 16033 | -7/Deep Caves | Destroyed AS-01035 16076 | -7/Deep Caves | Found GOLEM Unit 16082 | -7/Deep Caves | Destroyed 8 combat bots 16083 | -7/Deep Caves | Found GOLEM Unit 16429 | -7/Deep Caves | Spotted as-16684 16436 | -7/Deep Caves | Spotted as-34719 16442 | -7/Deep Caves | Spotted as-77757 16460 | -7/Deep Caves | Spotted as-86835 16461 | -7/Deep Caves | Spotted as-03377 16463 | -7/Deep Caves | Spotted as-00602 16464 | -7/Deep Caves | Destroyed as-77757 16493 | -7/Deep Caves | Destroyed as-34719 16495 | -7/Deep Caves | Spotted as-27323 16496 | -7/Deep Caves | Destroyed as-16684 16509 | -7/Deep Caves | Destroyed by as-27323 with Assembled Focal Cannon Last Messages --------------- 16447_ as-08537 Prototype Device integration complete. 16448_ as-08537 GOLEM Unit beginning Prototype Reactor integration. 16450_ as-08537 system terminally corrupted. 16451_ as-41660 Prototype Storage integration complete. 16452_ as-41660 GOLEM Unit beginning Prototype Device integration. 16453_ as-41660 Prototype Device integration complete. 16454_ as-41660 GOLEM Unit beginning Prototype Device integration. 16455_ as-41660 Prototype Device integration complete. 16456_ as-22992 GOLEM Unit beginning Prototype Leg integration. 16464_ RU-N14's Throwing Claymores expended. 16468_ The unstable cave ceiling collapses. 16468_ Zio. Heavy Carapace destroyed. 16474_ Zio. Glidesys I destroyed. 16493_ Chain reaction triggered in Prototype Reactor. 16493_ as-34719 destroyed. 16496_ as-16684 destroyed. 16505_ as-27323 Prototype Energy Cannon integration complete. 16505_ Zio. Heavy Carapace destroyed. 16506_ as-27323 GOLEM Unit beginning Prototype Protection integration. Map ----- +----------------------------------------------------+ | #??????# #??####??# #???# | | #???????? #?## ##?# ##### ##### | | #??????????# ### #?# #???# #??## | | #??????????## #?# ##### #?## | | #?????####??## ### ######### | | #????## ##??# # ##??????# | | ????# #### #### ### ############ | | ?????# ## ##??# #"# #### # <#### | | ??????# #???# # # ## #??# ## | | ##????# ##??# ## ####??# #? | | ????## #??######### ###?????# #? | | ###??# ### #### ###" ###?????# #? | | # #??# ##?# ##;;;;; ##" #?????# #? | | # #### #### #; ; ## ##????# #? | | # ## ;; # #????# #? | | ##### ;;# #????# #? | | #### ; # #????# #? | | ### ## %G % #?#### #? | | ###?######## G % #?## ## #? | | ##?????????## ### #? | | #??????????## #??# #? | | #??????????## #??# #? | | #?????# # #??# #? | | #????? # % #### ####? | | #????? # % ## ##???? | | #????? #####;; @ % ##????? | | #?????# ##???## #;##;;;; G #?????? | | ##????# ##????#######?##"" #?????? | | #????# #???????????#### ##?????# | | #?#### ##?????????## ##?????# | | ### #?????????# ####?## | | ## #?????????# ### | | #????????# | | ##??????# ## | | ###??????# ### ### | | # ###????????# #??## #?# | | * ## ##??????????## ###????# #?## ### | | #######????????????###???????# #?####?# | | # #????????????????????????????## #????# # | | ## ##?????????????????????????????### #??# ## | | ####?????????????????????????????????# #??# ###? | | #?????????????????????????????????????###??###???? | | #????????????????????????????????????????????????? | | | | | | | | | | | | | | | +----------------------------------------------------+ Best States ------------- Heat Dissipation 60 Energy Generation 17 Energy Capacity 265 Matter Stores 300 Matter Capacity 300 Sight Range 16 Robot Scan Range 15 Terrain Scan Range 16 Terrain Scan Density 210 Armor Coverage 1200 Resistance: KI 20 Weapon Shielding 100 Evasion (%) 40 Targeting Accuracy 5 Core Analysis 8 Recoil Reduction 5 Item Schematics ----------------- Imp. Shield Generator | -7/Zion | Archive Arc Thrower | -7/Zion | Archive Flak Gun | -7/Zion | Archive Fission Core | -7/Zion | Archive Lyr. Light Armor Plating | -7/Zion | Archive Plasma Rifle | -7/Zion | Archive Arm. Huge Wheel | -7/Zion | Archive Disruptor Cannon | -7/Zion | Archive Adv. Plasma Cannon | -7/Zion | Archive Hvy. Laser | -7/Zion | Archive Flexi-carbon Leg | -7/Zion | Archive Nuclear Pulse Thruster | -7/Zion | Archive Component Analysis Suite | -7/Zion | Archive Armor Integrity Analyzer | -7/Zion | Archive Hpw. Shock Rifle | -7/Zion | Archive Robot Schematics ------------------ A-02 Transporter | -7/Zion | Archive G-73 Enforcer | -7/Zion | Archive T-07 Excavator | -7/Zion | Archive X-57 Shotgunner | -7/Zion | Archive Fabricated ------------ Nothing Alien Tech Used ----------------- None Achievements -------------- None Challenges ------------ None Game ------ Seed ActiveDeuteriumLeg Manual? 0 Play Time 01:12:28 Cumulative 411.6 hours Start 2023.06.23 @ 20:19:48 End 2023.06.24 @ 12:19:03 Sessions 3 Manual Loads 0 Difficulty Rogue Special Mode None Game No. 495 Rogue 408 Adventurer 87 Explorer 0 Win Type - Total 21 Types 7/0/12/1/1/0/0/0/0 Lore% 85 Gallery% 90 Achievement% 73 Wizard Run 0 Options --------- ASCII 0 Keyboard 1 Movement Numpad Keybinds 0 Fullscreen 1 Font 18/SmallcapsGlow Map View 76x50 Tactical HUD 1 Map Filters NONE Filters NONE Steam 1 RUN: cf438fbe-bb2b-421d-8a50-e8771530b30e